[Event "50th Ciudad Sevilla 2024"]
[Site "Sevilla"]
[Date "2025.01.13"]
[Round "3.18"]
[White "Fondrat, Johan"]
[Black "Song, Yuxin"]
[Result "0-1"]
[Annotator "ChessBase"]
[ECO "B51"]
[WhiteElo "2078"]
[BlackElo "2384"]
[PlyCount "96"]
[EventDate "2025.01.10"]
[EventType "swiss"]
[EventCountry "ESP"]
[SourceTitle "playchess.com"]
[Source "ChessBase"]
[SourceQuality "1"]
[TimeControl "90+30"]

1. e4 {[%emt 0:00:00]} c5 {[%emt 0:00:00]} 2. Nf3 {[%emt 0:00:00]} d6 {[%emt 0:00:00]} 3. Bb5+ {[%emt 0:00:00]} Nd7 {[%emt 0:00:00]} 4. d4 {[%emt 0:00:00]} Ngf6 {[%emt 0:00:00]} 5. e5 {[%emt 0:00:00]} Qa5+ {[%emt 0:00:00]} 6. Nc3 {[%emt 0:00:00]} Ne4 {[%emt 0:00:00]} 7. Qd3 {[%emt 0:00:00]} cxd4 {[%emt 0:00:00]} 8. e6 {[%emt 0:00:00]} dxc3 {[%emt 0:00:00]} 9. Bxd7+ {[%emt 0:00:00]} Bxd7 {[%emt 0:00:00]} 10. exd7+ {[%emt 0:00:00]} Kxd7 {[%emt 0:00:00]} 11. O-O {[%emt 0:00:00]} f5 {[%emt 0:00:00]} 12. bxc3 {[%emt 0:00:00]} g6 {[%emt 0:00:00]} 13. Rb1 {[%emt 0:00:00]} Rb8 {[%emt 0:00:00]} 14. Rb5 {[%emt 0:00:00]} Qc7 {[%emt 0:00:00]} 15. Bf4 {[%emt 0:00:00]} Bg7 {[%emt 0:00:00]} 16. c4 {[%emt 0:00:00]} a6 {[%emt 0:00:00]} 17. Rb4 {[%emt 0:00:00]} Rhc8 {[%emt 0:00:00]} 18. Rfb1 {[%emt 0:00:00]} a5 {[%emt 0:00:00]} 19. Rb5 {[%emt 0:00:00]} Qxc4 {[%emt 0:00:00]} 20. Rxb7+ {[%emt 0:00:00]} Rxb7 {[%emt 0:00:00]} 21. Rxb7+ {[%emt 0:00:00]} Kd8 {[%emt 0:00:00]} 22. Ng5 {[%emt 0:00:00]} Qxa2 {[%emt 0:00:00]} 23. g3 {[%emt 0:00:00]} Nc5 {[%emt 0:00:00]} 24. Qb5 {[%emt 0:00:00]} Nxb7 {[%emt 0:00:00]} 25. Qxb7 {[%emt 0:00:00]} h6 {[%emt 0:00:00]} 26. Bxd6 {[%emt 0:00:00]} Qa1+ {[%emt 0:00:00]} 27. Kg2 {[%emt 0:00:00]} Qf6 {[%emt 0:00:00]} 28. Bxe7+ {[%emt 0:12:42]} Qxe7 {[%emt 0:00:00]} 29. Nf7+ {[%emt 0:00:29]} Ke8 {[%emt 0:00:00]} 30. Qxc8+ {[%emt 0:01:55]} Kxf7 {[%emt 0:00:00]} 31. Qc4+ {[%emt 0:00:26]} Qe6 {[%emt 0:00:00]} 32. Qc7+ {[%emt 0:00:10]} Kg8 {[%emt 0:00:00]} 33. Qxa5 {[%emt 0:00:38]} Qc6+ {[%emt 0:00:00]} 34. Kg1 {[%emt 0:01:37]} Qxc2 {[%emt 0:00:00]} 35. Qd8+ {[%emt 0:00:36]} Kh7 {[%emt 0:00:00]} 36. h4 {[%emt 0:00:43]} Qe2 {[%emt 0:00:00]} 37. Qc7 {[%emt 0:00:23]} Qe5 {[%emt 0:00:00]} 38. Qb6 {[%emt 0:00:47]} f4 {[%emt 0:00:00]} 39. Qb3 {[%emt 0:00:32]} Qe1+ {[%emt 0:00:00]} 40. Kg2 {[%emt 0:00:09]} Qe4+ {[%emt 0:00:00]} 41. f3 {[%emt 0:00:50]} Qe2+ {[%emt 0:00:00]} 42. Kh3 {[%emt 0:00:11]} Qf1+ {[%emt 0:00:43]} 43. Kg4 {[%emt 0:00:44]} fxg3 {[%emt 0:00:47]} 44. h5 {[%emt 0:00:33]} gxh5+ {[%emt 0:04:34]} 45. Kxg3 {[%emt 0:00:30]} Be5+ {[%emt 0:00:10]} 46. f4 {[%emt 0:00:09]} Bxf4+ {[%emt 0:00:14]} 47. Kh4 {[%emt 0:00:06]} Qh1+ {[%emt 0:00:20]} 48. Qh3 {[%emt 0:00:09]} Bg5+ {[%emt 0:00:01]} 0-1

[Event "50th Ciudad Sevilla 2024"]
[Site "Sevilla"]
[Date "2025.01.13"]
[Round "3.19"]
[White "Muzika, Paul"]
[Black "Lohia, Sohum"]
[Result "1/2-1/2"]
[Annotator "ChessBase"]
[ECO "C70"]
[WhiteElo "2070"]
[BlackElo "2367"]
[PlyCount "85"]
[EventDate "2025.01.10"]
[EventType "swiss"]
[EventCountry "ESP"]
[SourceTitle "playchess.com"]
[Source "ChessBase"]
[SourceQuality "1"]
[TimeControl "90+30"]

1. e4 {[%emt 0:00:00]} e5 {[%emt 0:00:00]} 2. Nf3 {[%emt 0:00:00]} Nc6 {[%emt 0:00:00]} 3. Bb5 {[%emt 0:00:00]} a6 {[%emt 0:00:00]} 4. Ba4 {[%emt 0:00:00]} Nge7 {[%emt 0:00:00]} 5. Nc3 {[%emt 0:00:00]} Ng6 {[%emt 0:00:00]} 6. h4 {[%emt 0:00:00]} h5 {[%emt 0:00:00]} 7. d4 {[%emt 0:00:00]} Bb4 {[%emt 0:00:00]} 8. Bg5 {[%emt 0:00:00]} f6 {[%emt 0:00:00]} 9. Be3 {[%emt 0:00:00]} exd4 {[%emt 0:00:00]} 10. Bxd4 {[%emt 0:00:00]} b5 {[%emt 0:00:00]} 11. Bb3 {[%emt 0:00:00]} Na5 {[%emt 0:00:00]} 12. O-O {[%emt 0:00:00]} Nxb3 {[%emt 0:00:00]} 13. axb3 {[%emt 0:00:00]} Bb7 {[%emt 0:00:00]} 14. Nd5 {[%emt 0:00:00]} Bd6 {[%emt 0:00:00]} 15. c3 {[%emt 0:00:00]} O-O {[%emt 0:00:00]} 16. b4 {[%emt 0:00:00]} Ne7 {[%emt 0:00:00]} 17. Bc5 {[%emt 0:00:00]} Bxc5 {[%emt 0:00:00]} 18. bxc5 {[%emt 0:00:00]} Nxd5 {[%emt 0:00:00]} 19. exd5 {[%emt 0:00:00]} Qe7 {[%emt 0:00:00]} 20. Qd4 {[%emt 0:00:00]} Rfe8 {[%emt 0:00:00]} 21. Rfe1 {[%emt 0:00:00]} Qf7 {[%emt 0:00:00]} 22. Rad1 {[%emt 0:00:00]} Qg6 {[%emt 0:00:00]} 23. Qf4 {[%emt 0:00:12]} Rxe1+ {[%emt 0:00:00]} 24. Nxe1 {[%emt 0:00:06]} Re8 {[%emt 0:01:05]} 25. Qxc7 {[%emt 0:08:59]} Bxd5 {[%emt 0:00:21]} 26. Rxd5 {[%emt 0:00:30]} Rxe1+ {[%emt 0:00:14]} 27. Kh2 {[%emt 0:00:08]} Re4 {[%emt 0:07:57]} 28. g3 {[%emt 0:03:01]} Re2 {[%emt 0:00:21]} 29. Qf4 {[%emt 0:00:24]} Qf7 {[%emt 0:00:49]} 30. Rd6 {[%emt 0:00:54]} Rxb2 {[%emt 0:02:04]} 31. Qd4 {[%emt 0:01:15]} Qe7 {[%emt 0:00:52]} 32. Kg2 {[%emt 0:00:23]} Re2 {[%emt 0:02:04]} 33. Rxd7 {[%emt 0:00:28]} Qe4+ {[%emt 0:00:12]} 34. Qxe4 {[%emt 0:00:43]} Rxe4 {[%emt 0:00:05]} 35. Ra7 {[%emt 0:01:02]} Re6 {[%emt 0:00:26]} 36. Rc7 {[%emt 0:00:36]} Re4 {[%emt 0:01:43]} 37. Rc6 {[%emt 0:00:20]} Ra4 {[%emt 0:00:29]} 38. Rb6 {[%emt 0:00:28]} Rc4 {[%emt 0:00:53]} 39. Rxa6 {[%emt 0:00:57]} Rxc5 {[%emt 0:00:33]} 40. Ra5 {[%emt 0:00:18]} Kh7 {[%emt 0:00:09]} 41. c4 {[%emt 0:00:04]} Rxc4 {[%emt 0:00:06]} 42. Rxb5 {[%emt 0:00:05]} Kh6 {[%emt 0:00:07]} 43. Kh2 {[%emt 0:00:34]} 1/2-1/2

[Event "50th Ciudad Sevilla 2024"]
[Site "Sevilla"]
[Date "2025.01.13"]
[Round "3.20"]
[White "Olsen, William Alexander"]
[Black "Tahay, Alexis"]
[Result "0-1"]
[Annotator "ChessBase"]
[ECO "B90"]
[WhiteElo "2064"]
[BlackElo "2364"]
[PlyCount "82"]
[EventDate "2025.01.10"]
[EventType "swiss"]
[EventCountry "ESP"]
[SourceTitle "playchess.com"]
[Source "ChessBase"]
[SourceQuality "1"]
[TimeControl "90+30"]

1. e4 {[%emt 0:00:00]} c5 {[%emt 0:00:00]} 2. Nf3 {[%emt 0:00:00]} d6 {[%emt 0:00:00]} 3. d4 {[%emt 0:00:00]} cxd4 {[%emt 0:00:00]} 4. Nxd4 {[%emt 0:00:00]} Nf6 {[%emt 0:00:00]} 5. Nc3 {[%emt 0:00:00]} a6 {[%emt 0:00:00]} 6. Nb3 {[%emt 0:00:00]} e6 {[%emt 0:00:00]} 7. g4 {[%emt 0:00:00]} b5 {[%emt 0:00:00]} 8. a3 {[%emt 0:00:00]} Nfd7 {[%emt 0:00:00]} 9. Bg2 {[%emt 0:00:00]} Nc6 {[%emt 0:00:00]} 10. h4 {[%emt 0:00:00]} Bb7 {[%emt 0:00:00]} 11. f4 {[%emt 0:00:00]} Rc8 {[%emt 0:00:00]} 12. Qe2 {[%emt 0:00:00]} Na5 {[%emt 0:00:00]} 13. Be3 {[%emt 0:00:00]} Nc4 {[%emt 0:00:00]} 14. O-O-O {[%emt 0:00:00]} Qc7 {[%emt 0:00:00]} 15. Rh3 {[%emt 0:00:00]} Nxb2 {[%emt 0:00:00]} 16. Nxb5 {[%emt 0:00:00]} Qc4 {[%emt 0:00:00]} 17. Qxc4 {[%emt 0:00:00]} Nxc4 {[%emt 0:00:00]} 18. N5d4 {[%emt 0:00:00]} Nf6 {[%emt 0:00:00]} 19. Bd2 {[%emt 0:00:00]} Bxe4 {[%emt 0:00:00]} 20. Bxe4 {[%emt 0:00:00]} Nxe4 {[%emt 0:00:00]} 21. Re1 {[%emt 0:00:00]} d5 {[%emt 0:00:00]} 22. Bb4 {[%emt 0:00:00]} Bd6 {[%emt 0:00:00]} 23. f5 {[%emt 0:00:00]} e5 {[%emt 0:00:00]} 24. Nf3 {[%emt 0:00:00]} f6 {[%emt 0:00:00]} 25. Nfd2 {[%emt 0:00:00]} Bxb4 {[%emt 0:00:00]} 26. axb4 {[%emt 0:00:00]} Ncxd2 {[%emt 0:00:00]} 27. Nxd2 {[%emt 0:00:00]} Nxd2 {[%emt 0:00:00]} 28. Kxd2 {[%emt 0:00:00]} Rc4 {[%emt 0:00:00]} 29. Ra1 {[%emt 0:00:00]} Rxb4 {[%emt 0:00:00]} 30. Rxa6 {[%emt 0:00:00]} O-O {[%emt 0:00:00]} 31. Rg3 {[%emt 0:00:00]} h5 {[%emt 0:00:00]} 32. g5 {[%emt 0:00:00]} Kh7 {[%emt 0:00:00]} 33. Ra7 {[%emt 0:00:00]} Rg4 {[%emt 0:00:00]} 34. Rxg4 {[%emt 0:00:00]} hxg4 {[%emt 0:00:00]} 35. g6+ {[%emt 0:00:00]} Kh6 {[%emt 0:00:00]} 36. Ke3 {[%emt 0:00:09]} Rc8 {[%emt 0:00:00]} 37. Kf2 {[%emt 0:00:26]} Rxc2+ {[%emt 0:00:00]} 38. Kg3 {[%emt 0:00:05]} Rc3+ {[%emt 0:00:00]} 39. Kxg4 {[%emt 0:03:30]} Rc4+ {[%emt 0:00:00]} 40. Kg3 {[%emt 0:00:41]} Rf4 {[%emt 0:00:00]} 41. Ra8 {[%emt 0:08:30]} Rxf5 {[%emt 0:00:00]} 0-1

[Event "50th Ciudad Sevilla 2024"]
[Site "Sevilla"]
[Date "2025.01.13"]
[Round "4.1"]
[White "Song, Yuxin"]
[Black "Xu, Xiangyu"]
[Result "1/2-1/2"]
[Annotator "RC"]
[ECO "C07"]
[WhiteElo "2384"]
[BlackElo "2611"]
[PlyCount "101"]
[EventDate "2025.01.10"]
[EventType "swiss"]
[EventCountry "ESP"]
[SourceTitle "playchess.com"]
[Source "ChessBase"]
[SourceQuality "1"]
[TimeControl "90+30"]

1. e4 {[%emt 0:00:00]} e6 {[%emt 0:00:00]} 2. d4 {[%emt 0:00:00]} d5 {[%emt 0:00:00]} 3. Nd2 {[%emt 0:00:00]} c5 {[%emt 0:00:00]} 4. exd5 {[%emt 0:00:00]} Qxd5 {[%emt 0:00:00]} 5. Ngf3 {[%emt 0:00:00]} cxd4 {[%emt 0:00:00]} 6. Bc4 {[%emt 0:00:00]} Qd7 {[%emt 0:00:00]} 7. O-O {[%emt 0:00:00]} Nc6 {[%emt 0:00:00]} 8. Nb3 {[%emt 0:00:00]} a6 {[%emt 0:00:00]} 9. Nbxd4 {[%emt 0:00:00]} Nxd4 {[%emt 0:00:00]} 10. Nxd4 {[%emt 0:00:00]} Qc7 {[%emt 0:00:00]} 11. Bb3 {[%emt 0:00:00]} Bd6 {[%emt 0:00:00]} 12. h3 {[%emt 0:00:00]} Ne7 {[%emt 0:00:00]} 13. c3 {[%emt 0:00:00]} O-O {[%emt 0:00:00]} 14. Re1 {[%emt 0:00:00]} Bd7 {[%emt 0:00:00]} 15. Qf3 {[%emt 0:00:00]} Rae8 {[%emt 0:00:00]} 16. Bc2 {[%emt 0:00:00]} Nc6 {[%emt 0:00:00]} 17. Qd3 {[%emt 0:00:00]} f5 {[%emt 0:00:00]} 18. Bb3 {[%emt 0:00:00]} Kh8 {[%emt 0:00:00]} 19. Nxc6 {[%emt 0:00:00]} Bxc6 {[%emt 0:00:00]} 20. Bg5 {[%emt 0:00:00]} h6 {[%emt 0:00:00]} 21. Be3 {[%emt 0:00:00]} Rf6 {[%emt 0:00:00]} 22. Rad1 {[%emt 0:00:00]} Bh2+ {[%emt 0:00:00]} 23. Kh1 {[%emt 0:00:00]} Rg6 {[%emt 0:00:00]} 24. f3 {[%emt 0:00:00]} Bg3 {[%emt 0:00:00]} 25. Re2 {[%emt 0:00:00]} Qe7 {[%emt 0:00:00]} 26. Bf2 {[%emt 0:00:00]} Bc7 {[%emt 0:00:00]} 27. Qe3 {[%emt 0:01:54]} Qf6 {[%emt 0:00:29]} 28. Bc2 {[%emt 0:01:26]} e5 {[%emt 0:00:36]} 29. a4 {[%emt 0:01:28]} Qf7 {[%emt 0:01:49]} 30. c4 {[%emt 0:01:55]} Rf6 {[%emt 0:01:39]} 31. Qc3 {[%emt 0:02:39]} Qh5 {[%emt 0:01:58]} 32. Bg3 {[%emt 0:00:24]} f4 {[%emt 0:00:50]} 33. Bf2 {[%emt 0:02:40]} e4 {[%emt 0:00:04]} 34. Bd4 {[%emt 0:00:34]} Rfe6 {[%emt 0:02:31]} 35. Bxg7+ {[%emt 0:02:12]} Kg8 {[%emt 0:00:02]} 36. Bh8 {[%emt 0:00:01]} R8e7 {[%emt 0:00:52]} 37. Rde1 {[%emt 0:01:43]} e3 {[%emt 0:00:41]} 38. Bd4 {[%emt 0:00:40]} Be5 {[%emt 0:00:02]} 39. Bxe5 {[%emt 0:01:07]} Rxe5 {[%emt 0:00:03]} 40. Qd4 {[%emt 0:00:07]} Bxf3 {[%emt 0:02:14]} 41. gxf3 {[%emt 0:00:07]} Qxh3+ {[%emt 0:02:13]} 42. Rh2 {[%emt 0:00:01]} Qxf3+ {[%emt 0:00:05]} 43. Rg2+ {[%emt 0:00:00]} Rg5 {[%emt 0:00:17]} 44. Ree2 {[%emt 0:01:41]} Kf7 {[%emt 0:01:58]} 45. Kg1 {[%emt 0:00:44]} Ree5 {[%emt 0:05:30]} 46. Qd7+ {[%emt 0:00:21]} Re7 {[%emt 0:00:07]} 47. Qd4 {[%emt 0:00:10]} Qxe2 {[%emt 0:00:53]} 48. Qxf4+ {[%emt 0:00:03]} Ke8 {[%emt 0:00:02]} 49. Qb8+ {[%emt 0:00:05]} Kf7 {[%emt 0:00:03]} 50. Qf4+ {[%emt 0:00:04]} Ke8 {[%emt 0:00:01]} 51. Qb8+ {[%emt 0:00:04]} 1/2-1/2

[Event "50th Ciudad Sevilla 2024"]
[Site "Sevilla"]
[Date "2025.01.13"]
[Round "4.2"]
[White "Iturrizaga Bonelli, Eduardo"]
[Black "Lin, Yingrui"]
[Result "1-0"]
[Annotator "RC"]
[ECO "A10"]
[WhiteElo "2574"]
[BlackElo "2393"]
[PlyCount "113"]
[EventDate "2025.01.10"]
[EventType "swiss"]
[EventCountry "ESP"]
[SourceTitle "playchess.com"]
[Source "ChessBase"]
[SourceQuality "1"]
[TimeControl "90+30"]

1. c4 {[%emt 0:00:00]} b6 {[%emt 0:00:00]} 2. b3 {[%emt 0:00:00]} Nf6 {[%emt 0:00:00]} 3. Bb2 {[%emt 0:00:00]} e6 {[%emt 0:00:00]} 4. Nf3 {[%emt 0:00:00]} Bb7 {[%emt 0:00:00]} 5. e3 {[%emt 0:00:00]} Be7 {[%emt 0:00:00]} 6. g3 {[%emt 0:00:00]} Na6 {[%emt 0:00:00]} 7. Bg2 {[%emt 0:00:00]} Nc5 {[%emt 0:00:00]} 8. d4 {[%emt 0:00:00]} Nce4 {[%emt 0:00:00]} 9. O-O {[%emt 0:00:00]} O-O {[%emt 0:00:00]} 10. Ne5 {[%emt 0:00:00]} c5 {[%emt 0:00:00]} 11. f3 {[%emt 0:00:00]} Nd6 {[%emt 0:00:00]} 12. e4 {[%emt 0:00:00]} cxd4 {[%emt 0:00:00]} 13. Bxd4 {[%emt 0:00:00]} Nde8 {[%emt 0:00:00]} 14. Nd3 {[%emt 0:00:00]} d6 {[%emt 0:00:00]} 15. Nc3 {[%emt 0:00:00]} Nd7 {[%emt 0:00:00]} 16. Rc1 {[%emt 0:00:00]} Nc7 {[%emt 0:00:00]} 17. Bf2 {[%emt 0:00:00]} d5 {[%emt 0:00:00]} 18. cxd5 {[%emt 0:00:00]} exd5 {[%emt 0:00:00]} 19. e5 {[%emt 0:00:00]} f6 {[%emt 0:00:00]} 20. exf6 {[%emt 0:00:00]} Nxf6 {[%emt 0:00:00]} 21. Re1 {[%emt 0:00:00]} Ba3 {[%emt 0:00:00]} 22. Rc2 {[%emt 0:00:00]} d4 {[%emt 0:00:00]} 23. Ne2 {[%emt 0:00:00]} Nb5 {[%emt 0:00:14]} 24. Rc4 {[%emt 0:00:00]} Bd5 {[%emt 0:00:57]} 25. Ra4 {[%emt 0:00:00]} Bc5 {[%emt 0:00:59]} 26. Qd2 {[%emt 0:00:00]} Rc8 {[%emt 0:02:20]} 27. Nef4 {[%emt 0:00:00]} a5 {[%emt 0:01:56]} 28. Nxc5 {[%emt 0:00:00]} bxc5 {[%emt 0:00:22]} 29. Qxa5 {[%emt 0:00:00]} Nc3 {[%emt 0:00:58]} 30. Qxd8 {[%emt 0:00:00]} Rfxd8 {[%emt 0:00:10]} 31. Ra5 {[%emt 0:00:00]} Bf7 {[%emt 0:01:30]} 32. Bh3 {[%emt 0:00:00]} Rc7 {[%emt 0:01:38]} 33. Bf1 {[%emt 0:07:12]} g5 {[%emt 0:03:08]} 34. Nd3 {[%emt 0:00:10]} Rd5 {[%emt 0:00:12]} 35. g4 {[%emt 0:02:19]} h5 {[%emt 0:01:38]} 36. h3 {[%emt 0:00:04]} hxg4 {[%emt 0:00:07]} 37. hxg4 {[%emt 0:00:06]} Kg7 {[%emt 0:00:34]} 38. Ra6 {[%emt 0:01:13]} Rdd7 {[%emt 0:01:42]} 39. Re5 {[%emt 0:00:26]} Rd5 {[%emt 0:01:03]} 40. Bg3 {[%emt 0:00:04]} Rc8 {[%emt 0:00:06]} 41. Ra7 {[%emt 0:01:36]} Nb5 {[%emt 0:01:01]} 42. Ra5 {[%emt 0:00:07]} Nc3 {[%emt 0:01:01]} 43. Rxd5 {[%emt 0:01:13]} Bxd5 {[%emt 0:00:13]} 44. Nxc5 {[%emt 0:00:23]} Bxf3 {[%emt 0:00:27]} 45. Ne6+ {[%emt 0:00:25]} Kg6 {[%emt 0:00:46]} 46. Rxg5+ {[%emt 0:00:55]} Kf7 {[%emt 0:00:03]} 47. Nxd4 {[%emt 0:00:11]} Nce4 {[%emt 0:00:26]} 48. Nxf3 {[%emt 0:00:43]} Nxg5 {[%emt 0:01:05]} 49. Nxg5+ {[%emt 0:00:07]} Kg6 {[%emt 0:00:03]} 50. Nf3 {[%emt 0:02:03]} Rc1 {[%emt 0:00:34]} 51. Ne5+ {[%emt 0:00:18]} Kh7 {[%emt 0:00:31]} 52. Kg2 {[%emt 0:02:53]} Rc2+ {[%emt 0:00:41]} 53. Kf3 {[%emt 0:00:04]} Rxa2 {[%emt 0:00:03]} 54. Bc4 {[%emt 0:00:05]} Kg7 {[%emt 0:00:35]} 55. Bf2 {[%emt 0:01:01]} Rd2 {[%emt 0:01:18]} 56. Be3 {[%emt 0:00:08]} Rd1 {[%emt 0:00:32]} 57. g5 {[%emt 0:00:56]} 1-0

[Event "50th Ciudad Sevilla 2024"]
[Site "Sevilla"]
[Date "2025.01.13"]
[Round "4.3"]
[White "Agdestein, Simen"]
[Black "Tahay, Alexis"]
[Result "1-0"]
[Annotator "RC"]
[ECO "E54"]
[WhiteElo "2564"]
[BlackElo "2364"]
[PlyCount "87"]
[EventDate "2025.01.10"]
[EventType "swiss"]
[EventCountry "ESP"]
[SourceTitle "playchess.com"]
[Source "ChessBase"]
[SourceQuality "1"]
[TimeControl "90+30"]

1. d4 {[%emt 0:00:00]} Nf6 {[%emt 0:00:00]} 2. c4 {[%emt 0:00:00]} e6 {[%emt 0:00:00]} 3. Nc3 {[%emt 0:00:00]} Bb4 {[%emt 0:00:00]} 4. e3 {[%emt 0:00:00]} O-O {[%emt 0:00:00]} 5. Bd3 {[%emt 0:00:00]} d5 {[%emt 0:00:00]} 6. Nf3 {[%emt 0:00:00]} dxc4 {[%emt 0:00:00]} 7. Bxc4 {[%emt 0:00:00]} c5 {[%emt 0:00:00]} 8. O-O {[%emt 0:00:00]} cxd4 {[%emt 0:00:00]} 9. exd4 {[%emt 0:00:00]} b6 {[%emt 0:00:00]} 10. a3 {[%emt 0:00:00]} Bxc3 {[%emt 0:00:00]} 11. bxc3 {[%emt 0:00:00]} Qc7 {[%emt 0:00:00]} 12. Qd3 {[%emt 0:00:00]} Bb7 {[%emt 0:00:00]} 13. Re1 {[%emt 0:00:00]} Rc8 {[%emt 0:00:00]} 14. Nd2 {[%emt 0:00:00]} Nc6 {[%emt 0:00:00]} 15. Ba2 {[%emt 0:00:00]} Ne7 {[%emt 0:00:00]} 16. c4 {[%emt 0:00:00]} Ng6 {[%emt 0:00:00]} 17. f3 {[%emt 0:00:00]} Rd8 {[%emt 0:00:00]} 18. Bb2 {[%emt 0:00:00]} Rac8 {[%emt 0:00:00]} 19. Rac1 {[%emt 0:00:00]} Qf4 {[%emt 0:00:00]} 20. Rc2 {[%emt 0:00:00]} e5 {[%emt 0:00:00]} 21. d5 {[%emt 0:00:00]} b5 {[%emt 0:00:00]} 22. cxb5 {[%emt 0:00:00]} Rxc2 {[%emt 0:00:00]} 23. Qxc2 {[%emt 0:00:00]} Rc8 {[%emt 0:00:00]} 24. Qd1 {[%emt 0:00:00]} Bxd5 {[%emt 0:00:00]} 25. Bxd5 {[%emt 0:00:00]} Nxd5 {[%emt 0:00:00]} 26. Ne4 {[%emt 0:00:00]} Ne3 {[%emt 0:00:00]} 27. Qd3 {[%emt 0:01:41]} Rc2 {[%emt 0:05:00]} 28. Re2 {[%emt 0:02:58]} Rxe2 {[%emt 0:00:23]} 29. Qxe2 {[%emt 0:00:02]} Nd5 {[%emt 0:02:34]} 30. a4 {[%emt 0:01:24]} h5 {[%emt 0:05:18]} 31. a5 {[%emt 0:02:28]} Qf5 {[%emt 0:00:41]} 32. g3 {[%emt 0:01:03]} Qd7 {[%emt 0:01:37]} 33. Qd3 {[%emt 0:00:44]} f5 {[%emt 0:02:08]} 34. Nc3 {[%emt 0:01:39]} Nf6 {[%emt 0:00:30]} 35. Qxd7 {[%emt 0:02:20]} Nxd7 {[%emt 0:00:01]} 36. Nd5 {[%emt 0:00:09]} Kf7 {[%emt 0:00:45]} 37. Ba3 {[%emt 0:00:57]} Ngf8 {[%emt 0:01:00]} 38. a6 {[%emt 0:01:09]} Ke6 {[%emt 0:00:27]} 39. Nc7+ {[%emt 0:00:26]} Kf7 {[%emt 0:00:04]} 40. Bxf8 {[%emt 0:01:07]} Kxf8 {[%emt 0:00:09]} 41. Nd5 {[%emt 0:00:05]} Nb8 {[%emt 0:01:20]} 42. b6 {[%emt 0:00:22]} Nc6 {[%emt 0:00:01]} 43. Nb4 {[%emt 0:00:17]} Nxb4 {[%emt 0:00:44]} 44. bxa7 {[%emt 0:00:06]} 1-0

[Event "50th Ciudad Sevilla 2024"]
[Site "Sevilla"]
[Date "2025.01.13"]
[Round "4.4"]
[White "Silva Lucena, Cristian"]
[Black "Li, Di"]
[Result "1/2-1/2"]
[Annotator "RC"]
[ECO "B30"]
[WhiteElo "2317"]
[BlackElo "2544"]
[PlyCount "106"]
[EventDate "2025.01.10"]
[EventType "swiss"]
[EventCountry "ESP"]
[SourceTitle "playchess.com"]
[Source "ChessBase"]
[SourceQuality "1"]
[TimeControl "90+30"]

1. e4 {[%emt 0:00:00]} c5 {[%emt 0:00:00]} 2. Nf3 {[%emt 0:00:00]} Nc6 {[%emt 0:00:00]} 3. c3 {[%emt 0:00:00]} Nf6 {[%emt 0:00:00]} 4. e5 {[%emt 0:00:00]} Nd5 {[%emt 0:00:00]} 5. d4 {[%emt 0:00:00]} cxd4 {[%emt 0:00:00]} 6. cxd4 {[%emt 0:00:00]} d6 {[%emt 0:00:00]} 7. Bc4 {[%emt 0:00:00]} Nb6 {[%emt 0:00:00]} 8. Bb5 {[%emt 0:00:00]} dxe5 {[%emt 0:00:00]} 9. Nxe5 {[%emt 0:00:00]} Bd7 {[%emt 0:00:00]} 10. Nxd7 {[%emt 0:00:00]} Qxd7 {[%emt 0:00:00]} 11. O-O {[%emt 0:00:00]} e6 {[%emt 0:00:00]} 12. Nc3 {[%emt 0:00:00]} Be7 {[%emt 0:00:00]} 13. Qg4 {[%emt 0:00:00]} Bf6 {[%emt 0:00:00]} 14. Be3 {[%emt 0:00:00]} O-O {[%emt 0:00:00]} 15. Rfd1 {[%emt 0:00:00]} Nd5 {[%emt 0:00:00]} 16. Ne4 {[%emt 0:00:00]} Kh8 {[%emt 0:00:00]} 17. Rac1 {[%emt 0:00:00]} Rac8 {[%emt 0:00:00]} 18. Qh3 {[%emt 0:00:00]} Be7 {[%emt 0:00:00]} 19. Nc5 {[%emt 0:00:00]} Bxc5 {[%emt 0:00:00]} 20. dxc5 {[%emt 0:00:00]} Rcd8 {[%emt 0:00:00]} 21. Qg3 {[%emt 0:00:00]} Qe7 {[%emt 0:00:00]} 22. a3 {[%emt 0:00:00]} h6 {[%emt 0:00:00]} 23. h3 {[%emt 0:00:00]} Qf6 {[%emt 0:00:00]} 24. Bxc6 {[%emt 0:00:00]} bxc6 {[%emt 0:00:00]} 25. Bd4 {[%emt 0:00:00]} Qg5 {[%emt 0:00:00]} 26. Qxg5 {[%emt 0:00:00]} hxg5 {[%emt 0:00:00]} 27. Be5 {[%emt 0:00:00]} f6 {[%emt 0:00:00]} 28. Bd6 {[%emt 0:00:00]} Rf7 {[%emt 0:00:00]} 29. Rc4 {[%emt 0:00:00]} Rb7 {[%emt 0:00:00]} 30. Ra4 {[%emt 0:00:00]} e5 {[%emt 0:00:00]} 31. Rd2 {[%emt 0:00:00]} Nc7 {[%emt 0:00:00]} 32. Kf1 {[%emt 0:00:00]} Kg8 {[%emt 0:00:00]} 33. Ke2 {[%emt 0:00:00]} Ne6 {[%emt 0:00:00]} 34. b4 {[%emt 0:00:00]} Kf7 {[%emt 0:00:00]} 35. Ra6 {[%emt 0:00:00]} Nd4+ {[%emt 0:00:00]} 36. Kd3 {[%emt 0:00:00]} Ke6 {[%emt 0:00:00]} 37. Kc4 {[%emt 0:00:00]} Rc8 {[%emt 0:00:00]} 38. a4 {[%emt 0:00:00]} Kf5 {[%emt 0:00:00]} 39. Rb2 {[%emt 0:00:00]} Ke6 {[%emt 0:00:00]} 40. b5 {[%emt 0:00:00]} cxb5+ {[%emt 0:00:53]} 41. axb5 {[%emt 0:00:00]} Rb6 {[%emt 0:00:02]} 42. Rxb6 {[%emt 0:00:00]} axb6 {[%emt 0:00:02]} 43. g4 {[%emt 0:00:00]} Ra8 {[%emt 0:09:04]} 44. Bc7 {[%emt 0:00:00]} Ra4+ {[%emt 0:00:07]} 45. Kc3 {[%emt 0:00:00]} bxc5 {[%emt 0:01:07]} 46. b6 {[%emt 0:00:00]} Kd7 {[%emt 0:00:09]} 47. b7 {[%emt 0:00:00]} Nc6 {[%emt 0:01:01]} 48. b8=Q {[%emt 0:00:00]} Nxb8 {[%emt 0:00:03]} 49. Bxb8 {[%emt 0:00:00]} Kc6 {[%emt 0:00:15]} 50. Kd3 {[%emt 0:00:00]} Ra3+ {[%emt 0:08:21]} 51. Kc4 {[%emt 0:00:00]} Ra4+ {[%emt 0:00:17]} 52. Kd3 {[%emt 0:00:00]} Ra3+ {[%emt 0:00:19]} 53. Kc4 {[%emt 0:00:00]} Ra4+ {[%emt 0:00:30]} 1/2-1/2